{"text_format":"2","workbook":"xlsx","n_sheets":1,"sheets":["Приложение 7"],"not_rendered":{"charts":0,"images":0,"macros":0,"external_links":0,"defined_names":3,"comments":0,"pivot_tables":0},"unopened":[],"bounds":{"document_bytes":16777216,"sheet_cells":100000,"run_cost":"one","rows_first":2000,"rows_last":500,"rows_between":2000,"halvings":0,"cell_chars":16384,"cell_head_chars":4096},"cells_cut":0,"cells_raw":0,"read":"whole","date_system":"1900"}

{"sheet":"Приложение 7","index":0,"n_rows":17,"n_cols":64,"rows_kept":17,"cut":false,"hidden":false,"merged":[[5,58,5,61],[5,62,6,62],[5,63,6,63],[5,50,6,50],[5,51,5,54],[5,55,6,55],[5,56,6,56],[5,57,6,57],[5,42,6,42],[5,43,6,43],[5,44,5,47],[5,48,6,48],[5,49,6,49],[5,34,6,34],[5,35,6,35],[5,36,6,36],[5,37,5,40],[5,41,6,41],[5,23,5,26],[5,27,6,27],[5,28,6,28],[5,29,6,29],[5,30,5,33],[4,55,4,56],[4,57,4,61],[4,62,4,63],[5,1,6,1],[5,2,5,5],[5,6,6,6],[5,7,6,7],[5,8,6,8],[5,9,5,12],[5,13,6,13],[5,14,6,14],[5,15,6,15],[5,16,5,19],[5,20,6,20],[5,21,6,21],[5,22,6,22],[3,62,3,63],[4,1,4,5],[4,6,4,7],[4,8,4,12],[4,13,4,14],[4,15,4,19],[4,20,4,21],[4,22,4,26],[4,27,4,28],[4,29,4,33],[4,34,4,35],[4,36,4,40],[4,41,4,42],[4,43,4,47],[4,48,4,49],[4,50,4,54],[3,43,3,47],[3,48,3,49],[3,50,3,54],[3,55,3,56],[3,57,3,61],[1,0,1,4],[0,14,0,16],[0,61,0,63],[3,0,6,0],[3,1,3,5],[3,6,3,7],[3,8,3,12],[3,13,3,14],[3,15,3,19],[3,20,3,21],[3,22,3,26],[3,27,3,28],[3,29,3,33],[3,34,3,35],[3,36,3,40],[3,41,3,42]]}
[]
["                            ОБЪЕМЫ РЕАЛИЗАЦИИ И ФИНАНСИРОВАНИЯ\nмероприятий в рамках пообъектного плана-графика догазификации территорий ведения гражданами садоводства для собственных нужд "]
[]
["Наименование газораспределительной организации","2024 год",{"$nulls":4},"2024 год",null,"2025 год",{"$nulls":4},"2025 год",null,"2026 год",{"$nulls":4},"2026 год",null,"2027 год",{"$nulls":4},"2027 год",null,"2028 год",{"$nulls":4},"2028 год",null,"2029 год",{"$nulls":4},"2029 год",null,"2030 год",{"$nulls":4},"2030 год",null,"2031 год",{"$nulls":4},"2031 год",null,"2032 год",{"$nulls":4},"2032 год"]
[null,"объем финансирования мероприятия в рамках пообъектного плана-графика догазификации \nсадоводческих некоммерческих товариществ (тыс. рублей) с налогом на добавленную стоимость",{"$nulls":4},"объем реализации мероприятия в рамках пообъектного плана-графика догазификации садоводческих некоммерческих товариществ",null,"объем финансирования мероприятия в рамках пообъектного плана-графика догазификации \nсадоводческих некоммерческих товариществ (тыс. рублей) с налогом на добавленную стоимость",{"$nulls":4},"объем реализации мероприятия в рамках пообъектного плана-графика догазификации садоводческих некоммерческих товариществ",null,"объем финансирования мероприятия в рамках пообъектного плана-графика догазификации \nсадоводческих некоммерческих товариществ (тыс. рублей) с налогом на добавленную стоимость",{"$nulls":4},"объем реализации мероприятия в рамках пообъектного плана-графика догазификации садоводческих некоммерческих товариществ",null,"объем финансирования мероприятия в рамках пообъектного плана-графика догазификации \nсадоводческих некоммерческих товариществ (тыс. рублей) с налогом на добавленную стоимость",{"$nulls":4},"объем реализации мероприятия в рамках пообъектного плана-графика догазификации садоводческих некоммерческих товариществ",null,"объем финансирования мероприятия в рамках пообъектного плана-графика догазификации \nсадоводческих некоммерческих товариществ (тыс. рублей) с налогом на добавленную стоимость",{"$nulls":4},"объем реализации мероприятия в рамках пообъектного плана-графика догазификации садоводческих некоммерческих товариществ",null,"объем финансирования мероприятия в рамках пообъектного плана-графика догазификации \nсадоводческих некоммерческих товариществ (тыс. рублей) с налогом на добавленную стоимость",{"$nulls":4},"объем реализации мероприятия в рамках пообъектного плана-графика догазификации садоводческих некоммерческих товариществ",null,"объем финансирования мероприятия в рамках пообъектного плана-графика догазификации \nсадоводческих некоммерческих товариществ (тыс. рублей) с налогом на добавленную стоимость",{"$nulls":4},"объем реализации мероприятия в рамках пообъектного плана-графика догазификации садоводческих некоммерческих товариществ",null,"объем финансирования мероприятия в рамках пообъектного плана-графика догазификации \nсадоводческих некоммерческих товариществ (тыс. рублей) с налогом на добавленную стоимость",{"$nulls":4},"объем реализации мероприятия в рамках пообъектного плана-графика догазификации садоводческих некоммерческих товариществ",null,"объем финансирования мероприятия в рамках пообъектного плана-графика догазификации \nсадоводческих некоммерческих товариществ (тыс. рублей) с налогом на добавленную стоимость",{"$nulls":4},"объем реализации мероприятия в рамках пообъектного плана-графика догазификации садоводческих некоммерческих товариществ"]
[null,"всего","в том числе",null,null,null,"план освоения вложений (тыс. рублей) с налогом \nна добавленную стоимость","план ввода основных \nсредств (тыс. рублей) \nбез налога на добавленную стоимость","всего","в том числе",null,null,null,"план освоения вложений (тыс. рублей) с налогом \nна добавленную стоимость","план ввода основных \nсредств (тыс. рублей) \nбез налога на добавленную стоимость","всего","в том числе",null,null,null,"план освоения вложений (тыс. рублей) с налогом \nна добавленную стоимость","план ввода основных \nсредств (тыс. рублей) \nбез налога на добавленную стоимость","всего","в том числе",null,null,null,"план освоения вложений (тыс. рублей) с налогом \nна добавленную стоимость","план ввода основных \nсредств (тыс. рублей) \nбез налога на добавленную стоимость","всего","в том числе",null,null,null,"план освоения вложений (тыс. рублей) с налогом \nна добавленную стоимость","план ввода основных \nсредств (тыс. рублей) \nбез налога на добавленную стоимость","всего","в том числе",null,null,null,"план освоения вложений (тыс. рублей) с налогом \nна добавленную стоимость","план ввода основных \nсредств (тыс. рублей) \nбез налога на добавленную стоимость","всего","в том числе",null,null,null,"план освоения вложений (тыс. рублей) с налогом \nна добавленную стоимость","план ввода основных \nсредств (тыс. рублей) \nбез налога на добавленную стоимость","всего","в том числе",null,null,null,"план освоения вложений (тыс. рублей) с налогом \nна добавленную стоимость","план ввода основных \nсредств (тыс. рублей) \nбез налога на добавленную стоимость","всего","в том числе",null,null,null,"план освоения вложений (тыс. рублей) с налогом \nна добавленную стоимость","план ввода основных \nсредств (тыс. рублей) \nбез налога на добавленную стоимость"]
[null,null,"средства от применения тарифа на услуги \nпо транспортиров-ке газа \nпо газораспре-делительным сетям","средства от применения специальной надбавки \nк тарифу на услуги \nпо транспортировке газа \nпо газораспре-делительным сетям","средства единого оператора газификации и (или) регионального оператора газификации","иные средства",null,null,null,"средства от применения тарифа на услуги \nпо транспорти-ровке газа \nпо газораспре-делительным сетям","средства от применения специальной надбавки \nк тарифу на услуги \nпо транспортировке газа \nпо газораспре-делительным сетям","средства единого оператора газификации и (или) регионально-го оператора газификации","иные средства",null,null,null,"средства от применения тарифа на услуги \nпо транспорти-ровке газа \nпо газораспре-делительным сетям","средства от применения специальной надбавки \nк тарифу на услуги \nпо транспортировке газа \nпо газораспре-делительным сетям","средства единого оператора газификации и (или) регионально-го оператора газификации","иные средства",null,null,null,"средства от применения тарифа на услуги \nпо транспорти-ровке газа \nпо газораспре-делительным сетям","средства от применения специальной надбавки \nк тарифу на услуги \nпо транспортировке газа \nпо газораспре-делительным сетям","средства единого оператора газификации и (или) регионально-го оператора газификации","иные средства",null,null,null,"средства от применения тарифа на услуги \nпо транспорти-ровке газа \nпо газораспре-делительным сетям","средства от применения специальной надбавки \nк тарифу на услуги \nпо транспортировке газа \nпо газораспре-делительным сетям","средства единого оператора газификации и (или) регионально-го оператора газификации","иные средства",null,null,null,"средства от применения тарифа на услуги \nпо транспорти-ровке газа \nпо газораспре-делительным сетям","средства от применения специальной надбавки \nк тарифу на услуги \nпо транспортировке газа \nпо газораспре-делительным сетям","средства единого оператора газификации и (или) регионально-го оператора газификации","иные средства",null,null,null,"средства от применения тарифа на услуги \nпо транспорти-ровке газа \nпо газораспре-делительным сетям","средства от применения специальной надбавки \nк тарифу на услуги \nпо транспортировке газа \nпо газораспре-делительным сетям","средства единого оператора газификации и (или) регионально-го оператора газификации","иные средства",null,null,null,"средства от применения тарифа на услуги \nпо транспорти-ровке газа \nпо газораспре-делительным сетям","средства от применения специальной надбавки \nк тарифу на услуги \nпо транспортировке газа \nпо газораспре-делительным сетям","средства единого оператора газификации и (или) регионально-го оператора газификации","иные средства",null,null,null,"средства от применения тарифа на услуги \nпо транспорти-ровке газа \nпо газораспре-делительным сетям","средства от применения специальной надбавки \nк тарифу на услуги \nпо транспортировке газа \nпо газораспре-делительным сетям","средства единого оператора газификации и (или) регионально-го оператора газификации","иные средства"]
[1,"2","3","4","5","6","7","8","9","10","11","12","13","14","15","16","17","18","19","20","21","22","23","24","25","26","27","28","29","30","31","32","33","34","35","36","37","38","39","40","41","42","43","44","45","46","47","48","49","50","51","52","53","54","55","56","57","58","59","60","61","62","63","64"]
["АО «Газпром газораспределение Челябинск»",0,0,0,0,0,0,0,0,0,0,0,0,0,0,{"$f":"S9","v":4052187.24},0,0,4052187.24,0,4052187.24,3376822.7,0,0,0,0,0,0,0,4047518.83,0,0,4047518.8259999999,0,4047518.83,3372932.35,0,0,0,0,0,0,0,0,0,0,0,0,0,0,0,0,0,0,0,0,0,0,0,0,0,0,0,0]
["АО «Челябинскгоргаз»",0,0,0,0,0,0,0,605500,0,0,600000,5500,605500,250000,2022000,0,0,2000000,22000,2022000,1000000,1755000,0,0,1700000,55000,1755000,2500000,1474885.4,0,0,1450000,24885.4,1474885.4,1131154.5,0,0,0,0,0,0,0,0,0,0,0,0,0,0,0,0,0,0,0,0,0,0,0,0,0,0,0,0]
["ООО «Классик»",0,0,0,0,0,0,0,20000,0,0,20000,0,20000,20000,0,0,0,0,0,0,0,49200,0,0,49200,0,49200,49200,13300,0,0,13300,0,13300,13300,0,0,0,0,0,0,0,0,0,0,0,0,0,0,0,0,0,0,0,0,0,0,0,0,0,0,0,0]
["ООО «Магнитогорскгазстрой»",0,0,0,0,0,0,0,0,0,0,0,0,0,0,4992,0,4992,0,0,4992,4160,12492,0,12492,0,0,12492,10410,12492,0,12492,0,0,12492,10410,12492,0,12492,0,0,12492,10410,12492,0,12492,0,0,12492,10410,0,0,0,0,0,0,0,0,0,0,0,0,0,0]
["МУП «Магнитогорские газовые сети»",0,0,0,0,0,0,0,0,0,0,0,0,0,0,197582.027,0,0,197582.027,0,197582.027,164651.69,41687.290999999997,0,0,41687.290999999997,0,41687.290999999997,34739.410000000003,248550.64,0,0,248550.64,0,248550.64,207125.53,45149,0,0,45149,0,45149,37624.17,0,0,0,0,0,0,0,0,0,0,0,0,0,0,0,0,0,0,0,0,0]
["ООО «Озерскгаз»",0,0,0,0,0,0,0,3482,0,0,3482,0,3482,2902,2868,0,1200,1668,0,2868,2390,7990,0,1200,6790,0,7990,6658,4507,0,1200,3307,0,4507,3756,4302,0,1200,3102,0,4302,3585,2868,0,1200,1668,0,2868,2390,11267,0,0,11267,0,11267,9389,8604,0,1200,7404,0,8604,7170]
["ООО «Тополь М»",0,0,0,0,0,0,0,0,0,0,0,0,0,0,100000,0,0,100000,0,100000,100000,0,0,0,0,0,0,0,0,0,0,0,0,0,0,0,0,0,0,0,0,0,0,0,0,0,0,0,0,0,0,0,0,0,0,0,0,0,0,0,0,0,0]
["АО «Трансэнерго»",182.52,0,182.52,0,0,182.52,152.1,0,0,0,0,0,0,0,32370.34,591.37,0,31778.97,0,32370.34,26975.279999999999,140177.63,0,1170.24,139007.4,0,140177.63,116814.69,0,0,0,0,0,0,0,0,0,0,0,0,0,0,0,0,0,0,0,0,0,0,0,0,0,0,0,0,0,0,0,0,0,0,0]
["Итого:",{"$f":"SUM(B9:B16)","v":182.52},0,182.52,0,0,182.52,152.1,628982,0,0,623482,5500,628982,272902,6411999.6069999998,591.37,6192,6383216.2369999997,22000,6411999.6069999998,4674999.6700000009,2006546.9210000001,0,14862.24,1936684.6909999999,55000,2006546.9210000001,2717822.1,5801253.8700000001,0,13692,5762676.4659999991,{"$f":"SUM(AH9:AH16)","v":24885.4},5801253.8700000001,4738678.38,61943,0,13692,48251,0,61943,51619.17,15360,0,13692,1668,0,15360,12800,11267,0,0,11267,0,11267,9389,8604,0,1200,7404,0,8604,7170]